Cogmind - Beta 13 @@@ ROGUE MODE // 2024.07.04 @ 09:49:26 Player: ZergFTW Result: Destroyed by C-40 Crusher with Compactor Performance ------------- Evolutions (3) 1500 Regions Visited (8) 1600 Robots Destroyed (143) 715 Value Destroyed (3250) 3250 Prototype IDs (29) 580 Alien Tech Used (0) 0 Bonus (174) 174 TOTAL SCORE: 7819 Bonus ------- High Alert Combat Kills 98 Follower Combat Kills 148 Aligned with FarCom 300 Friendly Fire -372 Cogmind --------- Core Integrity 0/700 Matter 121/300 Energy 98/100 System Corruption 3% Temperature Cool (0) Movement Core (50) Location -7/Waste Parts ------- > --- POWER (1) -------- (None) > --- PROPULSION (4) --- (None) > --- UTILITY (5) ------ (None) > --- WEAPON (3) ------- (None) > --- INVENTORY (5) ---- Enhanced Nuclear Core High-capacity Matter Pod (200) Hardened Light Armor Plating Improved Shield Generator Heavy Flail Peak State ------------ > --- POWER ------------ Enhanced Nuclear Core > --- PROPULSION ------- Improved Treads Advanced Treads Medium Treads Medium Treads > --- UTILITY ---------- High-capacity Storage Unit Improved Targeting Computer Heavy Armor Plating Improved Shield Generator > --- WEAPON ----------- Improved Assault Rifle Minigun High-powered Shotgun > --- INVENTORY -------- Enhanced Nuclear Core Light Treads Light Treads Light Treads Light Treads Light Treads High-capacity Matter Pod Advanced Targeting Computer Advanced ECM Suite Hardened Light Armor Plating Hardened Light Armor Plating Hardened Medium Armor Plating Hardened Medium Armor Plating Heavy Assault Rifle Minigun Minigun Minigun Missile Launcher Field Lobotomy Kit Heavy Flail [Rating: 45] Favorites ----------- Power Ion Engine Engine Ion Engine Power Core Enhanced Nuclear Core Propulsion Light Treads Treads Light Treads Utility High-capacity Storage Unit Device Structural Scanner Storage High-capacity Storage Unit Processor Improved Targeting Computer Protection Hardened Light Armor Plating Weapon Assault Rifle Energy Gun Medium Laser Ballistic Gun Assault Rifle Ballistic Cannon Light Cannon Launcher Rocket Launcher Special Weapon Mining Laser Impact Weapon Powered Hammer Slashing Weapon Katana Build | -11 -10 -9 -9 -9 -8 -8 -7 -7 ------- Run | Yrd Mat Mat Min Exi Min Mat Fac Was Slots Evolved 6 | . . 2 . . . 2 2 . Power . | . . . . . . . . . Propulsion 2 | . . 1 . . . . 1 . Utility 3 | . . 1 . . . 1 1 . Weapon 1 | . . . . . . 1 . . Parts Attached 147 | 7 30 30 2 1 4 42 23 8 Power 18 | 1 4 4 . . 1 5 3 . Engine 12 | 1 4 4 . . . 2 1 . Core 6 | . . . . . 1 3 2 . Reactor . | . . . . . . . . . Propulsion 46 | 2 11 11 . . . 10 5 7 Treads 46 | 2 11 11 . . . 10 5 7 Leg . | . . . . . . . . . Wheel . | . . . . . . . . . Hover . | . . . . . . . . . Flight . | . . . . . . . . . Utility 38 | 2 5 11 . 1 2 12 4 1 Device 19 | 1 3 5 . . 1 4 4 1 Storage 6 | 1 2 3 . . . . . . Processor 2 | . . . . . 1 1 . . Hackware . | . . . . . . . . . Protection 11 | . . 3 . 1 . 7 . . Artifact . | . . . . . . . . . Weapon 45 | 2 10 4 2 . 1 15 11 . Energy Gun 1 | 1 . . . . . . . . Energy Cannon . | . . . . . . . . . Ballistic Gun 32 | 1 8 4 1 . 1 11 6 . Ballistic Cannon 2 | . . . . . . 2 . . Launcher 2 | . . . 1 . . 1 . . Special Weapon 2 | . 2 . . . . . . . Impact Weapon 2 | . . . . . . . 2 . Slashing Weapon 4 | . . . . . . 1 3 . Piercing Weapon . | . . . . . . . . . Special Melee Weapon . | . . . . . . . . . Unidentified Prototypes 3 | . . 2 . . . . 1 . Parts Lost 20 | . 4 2 1 . . 5 . 8 Power 1 | . . . . . . . . 1 Propulsion 10 | . 2 2 . . . 1 . 5 Utility 4 | . . . 1 . . 1 . 2 Weapon 5 | . 2 . . . . 3 . . Highest Loss Streak 8 | . 3 2 1 . . 2 . 8 To Critical Strikes . | . . . . . . . . . Average Slot Usage (%) 96 | . 98 99 88 93 100 97 92 65 Engine 7 | . 13 11 11 11 1 5 . . Core 2 | . . . . . 9 3 6 5 Treads 29 | . 27 32 33 33 33 26 30 20 Device 9 | . 13 13 11 11 2 4 7 5 Storage 9 | . 14 11 11 11 11 9 7 5 Processor 4 | . . . . . 11 9 7 5 Protection 7 | . . 8 . 4 8 11 7 5 Ballistic Gun 23 | . 25 21 20 22 22 26 19 15 Naked Turns 35 | . . . . . . . . 35 Heaviest Build 77 | 13 50 61 61 58 58 73 77 76 Greatest Support 101 | 40 40 60 60 60 60 62 101 101 Greatest Overweight (x) 1 | . 1 1 1 . . 1 . . Average Overweight (x) . | . . . . . . . . . Largest Inventory Capacity 20 | 8 20 20 20 20 20 20 20 20 Average Capacity 19 | 7 16 20 20 20 20 20 20 16 Most Carried 20 | 5 19 20 20 20 20 20 20 20 Average Carried 18 | 3 13 19 19 19 20 18 19 15 Final Capacity 20 | 8 20 20 20 20 20 20 20 5 Final Carried 20 | 5 16 20 20 20 20 20 20 5 Class Distribution -------------------- 28% | Mutant 27% | Scavenger-Mutant 22% | Tank 11% | Scavenger-Skirmisher 4% | Skirmisher 3% | Scavenger-Tank Dominant Class ---------------- Mutant | -10/Materials Scavenger-Mutant | -9/Materials Scavenger-Mutant | -9/Mines Scavenger-Mutant | -9/Exiles Scavenger-Mutant | -8/Mines Scavenger-Skirmisher | -8/Materials Tank | -7/Factory Mutant | -7/Waste Resources | -11 -10 -9 -9 -9 -8 -8 -7 -7 ----------- Run | Yrd Mat Mat Min Exi Min Mat Fac Was Matter Collected 4341 | 343 923 1004 73 50 106 1286 556 . Remotely . | . . . . . . . . . Salvage Created 4798 | 187 888 1344 57 . 163 1607 552 . Parts 343 | 12 61 101 6 . 13 103 47 . Haulers Intercepted 13 | . 2 4 . . . 6 1 . Recyclers Shooed 5 | . 2 . . . . 2 1 . Parts Field Recycled . | . . . . . . . . . Retrieved Matter . | . . . . . . . . . Parts Self-Destructed . | . . . . . . . . . Prevented . | . . . . . . . . . Kills | -11 -10 -9 -9 -9 -8 -8 -7 -7 ------- Run | Yrd Mat Mat Min Exi Min Mat Fac Was Combat Hostiles Destroyed 78 | . 14 27 4 . 3 23 7 . Guns 75 | . 14 27 4 . 3 21 6 . Cannons 1 | . . . . . . 1 . . AOE 2 | . . . . . . 1 1 . Classes Destroyed 14 | 3 6 2 . . . 2 1 . Worker 9 | 2 1 . . . . 3 3 . Builder 17 | . 4 5 . . 1 3 4 . Tunneler 2 | 2 . . . . . . . . Hauler 13 | . 2 4 . . . 6 1 . Recycler 5 | 1 2 . . . . 2 . . Mechanic 1 | . . 1 . . . . . . Operator 3 | . 1 . . . . 2 . . Watcher 13 | . 3 4 . . . 4 2 . Swarmer 26 | . 5 10 4 . . 7 . . Grunt 36 | . 9 11 . . 3 9 4 . Brawler 1 | . . . . . . 1 . . Sentry 12 | . . 6 . . . 5 1 . Hunter 1 | . . . . . . 1 . . Programmer 4 | . . . . . . . 4 . Best Kill Streak 9 | 2 3 9 2 . 3 6 3 . Combat Bots Only 9 | . 3 9 2 . 3 5 2 . Max Kills in Single Turn 5 | 1 2 1 1 . 1 3 5 . Gunslinging 1 | . 1 . . . . 1 . . Exploded 1 | . . . . . . 1 1 . Melee . | . . . . . . . . . Uniques/NPCs Destroyed . | . . . . . . . . . Combat | -11 -10 -9 -9 -9 -8 -8 -7 -7 -------- Run | Yrd Mat Mat Min Exi Min Mat Fac Was Hostile Shots Fired 448 | . 92 116 28 . 22 118 46 26 Missed 98 | . 19 33 6 . 4 20 15 1 Damage Taken 5283 | . 801 996 193 . 311 1351 533 1098 Core 995 | . 89 48 24 . 54 78 12 690 Absorbed by Shields 30 | . . . . . . 14 16 . Regen/Repaired (Parts) 313 | . 115 71 . . . 127 . . Core Remaining (%) 79 | 100 64 . . . 68 85 . . Volleys Fired 341 | 11 76 104 7 . 11 99 33 . Largest 3 | 2 2 2 2 . 2 3 3 . Hottest 100 | 70 100 43 46 . 46 75 73 . Shots Fired 807 | 22 148 209 14 . 22 294 98 . Gun 792 | 22 145 209 14 . 22 282 98 . Cannon 11 | . . . . . . 11 . . Launcher 1 | . . . . . . 1 . . Special 3 | . 3 . . . . . . . Kinetic 768 | 11 121 209 14 . 22 293 98 . Thermal 38 | 11 27 . . . . . . . Explosive 1 | . . . . . . 1 . . Electromagnetic . | . . . . . . . . . Robot Hit Streak 21 | 6 9 14 9 . 14 21 14 . Robot Miss Streak 4 | 2 3 3 4 . 2 3 4 . Penetration Max . | . . . . . . . . . Secondary Targets 6 | . 2 1 . . 2 1 . . Max Gunslinging Chain 1 | . 1 1 . . 1 1 . . Shots Hit Robots 549 | 15 100 144 6 . 18 203 63 . Core Hits 227 | 6 39 64 4 . 9 77 28 . Critical Kills 1 | . . 1 . . . . . . Critical Parts Destroyed 1 | . . . . . . 1 . . Critical Strikes 3 | 1 . 1 . . . 1 . . Burn 1 | 1 . . . . . . . . Destroy 2 | . . 1 . . . 1 . . Melee Attacks 17 | . . . . . . 1 16 . Impact 4 | . . . . . . . 4 . Slashing 13 | . . . . . . 1 12 . Piercing . | . . . . . . . . . Sneak Attacks 2 | . . . . . . . 2 . Combat Hostiles . | . . . . . . . . . Follow-up Attacks . | . . . . . . . . . Damage Inflicted 8635 | 183 1275 1880 106 . 261 3153 1772 5 Guns 7732 | 183 1275 1880 106 . 261 2894 1133 . Cannons 194 | . . . . . . 194 . . Explosions 572 | . . . . . . 65 507 . Melee 132 | . . . . . . . 132 . Ramming 5 | . . . . . . . . 5 Kinetic 7604 | 83 1053 1880 106 . 261 3088 1133 . Thermal 829 | 100 222 . . . . . 507 . Explosive 65 | . . . . . . 65 . . Electromagnetic . | . . . . . . . . . Impact . | . . . . . . . . . Slashing 132 | . . . . . . . 132 . Piercing . | . . . . . . . . . Highest Corruption 5 | . 5 5 5 5 5 . 3 3 Average Corruption 4 | . 4 3 5 5 5 . 2 3 Corruption Purged . | . . . . . . . . . Corruption Blocked . | . . . . . . . . . Effects 89 | . 10 34 16 15 4 . 6 4 Message Errors 23 | . 4 11 4 2 . . 1 1 Matter Fused 21 | . 1 7 2 6 . . 3 2 Heat Flow Errors 10 | . 3 4 . 1 . . 1 1 Energy Discharges 12 | . . 4 3 4 1 . . . Parts Fused 2 | . . . 1 . 1 . . . Data Loss (minor) 9 | . 1 2 3 1 2 . . . Data Loss (major) 3 | . . . 2 1 . . . . Misfires 2 | . . 2 . . . . . . Alerts 6 | . 1 3 1 . . . 1 . Weapon Failures 1 | . . 1 . . . . . . Overload Shots . | . . . . . . . . . Overflow Damage 179 | . . . . . . . 179 . Projectiles . | . . . . . . . . . Explosions 147 | . . . . . . . 147 . Melee 32 | . . . . . . . 32 . Knockbacks 2 | . . . . . . 2 . . Impact . | . . . . . . . . . Kinetic 2 | . . . . . . 2 . . Secondary . | . . . . . . . . . Self-Inflicted Damage 123 | . . . . . . . 122 1 Shots 2 | . . . . . . . 2 . Rammed 5 | . . . . . . . . 5 Targets Rammed 5 | . . . . . . . . 5 Kicked . | . . . . . . . . . Crushed . | . . . . . . . . . Highest Temperature 270 | 36 169 238 . 197 137 270 182 148 Average Temperature 50 | 13 25 60 . 166 77 58 44 75 Received Heat Transfer 1591 | . 372 384 9 . 198 586 42 . Siege Activations . | . . . . . . . . . Robots Corrupted . | . . . . . . . . . Combat Hostiles . | . . . . . . . . . Parts Fried . | . . . . . . . . . Impact Corruptions . | . . . . . . . . . Robots Melted . | . . . . . . . . . Combat Hostiles . | . . . . . . . . . Parts Melted 1 | 1 . . . . . . . . Heat Transferred 1386 | 370 666 . . . . . 350 . Parts Sabotaged . | . . . . . . . . . Parts Stolen . | . . . . . . . . . Parts Stripped . | . . . . . . . . . Power Chain Reactions . | . . . . . . . . . Alert | -11 -10 -9 -9 -9 -8 -8 -7 -7 ------- Run | Yrd Mat Mat Min Exi Min Mat Fac Was Peak Influence 563 | 25 144 563 479 . 75 484 355 107 Initial 219 | . 16 39 168 . . 29 219 107 Average 197 | 10 70 218 355 . 65 218 225 70 Maximum Alert Level 2 | . . 2 2 . . 2 1 . Low Security (%) 52 | 100 100 58 1 . 100 40 32 100 Level 1 34 | . . 12 51 . . 45 67 . Level 2 13 | . . 28 47 . . 13 . . Level 3 . | . . . . . . . . . Level 4 . | . . . . . . . . . Level 5 . | . . . . . . . . . High Security . | . . . . . . . . . Max Security . | . . . . . . . . . Squads Dispatched 17 | . 3 3 . . . 4 7 . Investigation 4 | . 2 1 . . . . 1 . Extermination 4 | . . . . . . . 4 . Reinforcement 5 | . 1 . . . . 3 1 . Assault 3 | . . 2 . . . . 1 . Garrison 1 | . . . . . . 1 . . Intercept . | . . . . . . . . . Searches Triggered . | . . . . . . . . . Construction Impeded . | . . . . . . . . . Haulers Reinforced 1 | . . . . . . . 1 . Active Scanning Responses . | . . . . . . . . . Cargo Convoy Interrupts . | . . . . . . . . . Stealth | -11 -10 -9 -9 -9 -8 -8 -7 -7 --------- Run | Yrd Mat Mat Min Exi Min Mat Fac Was Distress Signals 7 | . . 4 . . . 3 . . Communications Jammed . | . . . . . . . . . Distress Signals . | . . . . . . . . . Times Spotted 130 | . 18 43 13 . 3 37 10 6 Peak Tracking Total 10 | . 4 10 4 . 3 6 2 6 Tactical Retreats 6 | . 1 4 . . . 1 . . Traps | -11 -10 -9 -9 -9 -8 -8 -7 -7 ------- Run | Yrd Mat Mat Min Exi Min Mat Fac Was Traps Triggered 14 | . 8 2 . . . . 4 . Indirectly . | . . . . . . . . . Trap Hack Attempts . | . . . . . . . . . Triggered . | . . . . . . . . . Disarmed . | . . . . . . . . . Reprogrammed . | . . . . . . . . . Reused . | . . . . . . . . . Traps Extracted . | . . . . . . . . . Installed . | . . . . . . . . . Triggered . | . . . . . . . . . Machines | -11 -10 -9 -9 -9 -8 -8 -7 -7 ---------- Run | Yrd Mat Mat Min Exi Min Mat Fac Was Machines Disabled 14 | . . . . . . 1 13 . Max in Single Turn 11 | . . . . . . 1 11 . Garrison Access 1 | . . . . . . . 1 . Machines Repaired . | . . . . . . . . . Machines Dismantled . | . . . . . . . . . Machines Sabotaged . | . . . . . . . . . Overloaded Fab Kills . | . . . . . . . . . Hacking | -11 -10 -9 -9 -9 -8 -8 -7 -7 --------- Run | Yrd Mat Mat Min Exi Min Mat Fac Was Machines Accessed 35 | . 9 9 . 2 . 9 6 . Terminals 22 | . 6 6 . . . 7 3 . Fabricators 2 | . . . . . . . 2 . Repair Stations 3 | . 1 1 . . . 1 . . Recycling Units 4 | . 2 1 . . . 1 . . Scanalyzers 1 | . . 1 . . . . . . Garrison Access 1 | . . . . . . . 1 . Total Hacks 87 | . 24 25 . 2 . 22 14 . Successful 38 | . 10 11 . 2 . 10 5 . Failed 49 | . 14 14 . . . 12 9 . Catastrophic 10 | . 3 4 . . . 2 1 . Database Lockouts . | . . . . . . . . . Manual 57 | . 20 12 . 1 . 17 7 . Terminals 63 | . 19 19 . . . 19 6 . Fabricators 6 | . . . . . . . 6 . Repair Stations 7 | . 3 2 . . . 2 . . Recycling Units 4 | . 2 1 . . . 1 . . Scanalyzers 3 | . . 3 . . . . . . Garrison Access 2 | . . . . . . . 2 . Terminal Hacks 17 | . 6 6 . 2 . 3 . . Record 1 | . . . . 1 . . . . Robot Schematic 3 | . 2 1 . . . . . . Robot Analysis 1 | . 1 . . . . . . . Prototype ID Bank 2 | . . 1 . . . 1 . . Branch Access Points 3 | . 1 1 . . . 1 . . Terminal Index 1 | . 1 . . . . . . . Alert Level 2 | . . 2 . . . . . . Unreport Threat 1 | . . 1 . . . . . . Locate Traps 2 | . 1 . . . . 1 . . Derelict Proto ID Bank 1 | . . . . 1 . . . . Fabricator Hacks 3 | . . . . . . . 3 . Load Schematic 1 | . . . . . . . 1 . Build 2 | . . . . . . . 2 . Repair Station Hacks 6 | . 2 2 . . . 2 . . Scan Component 3 | . 1 1 . . . 1 . . Repair 3 | . 1 1 . . . 1 . . Recycling Unit Hacks 4 | . 2 1 . . . 1 . . Report Inventory 4 | . 2 1 . . . 1 . . Scanalyzer 2 | . . 2 . . . . . . Insert Component 1 | . . 1 . . . . . . Analyze 1 | . . 1 . . . . . . Garrison Access Hacks . | . . . . . . . . . Unauthorized Hacks 6 | . . . . . . 4 2 . Terminals 6 | . . . . . . 4 2 . Assimilate 3 | . . . . . . 2 1 . Botnet 3 | . . . . . . 2 1 . Fabricators . | . . . . . . . . . Repair Stations . | . . . . . . . . . Recycling Units . | . . . . . . . . . Scanalyzers . | . . . . . . . . . Garrison Access . | . . . . . . . . . Data Cores Recovered . | . . . . . . . . . Used . | . . . . . . . . . Hacking Detections 28 | . 7 8 . . . 7 6 . Full Trace Events 9 | . 3 4 . . . 1 1 . Feedback Events 1 | . . 1 . . . . . . Corruption 1 | . . 1 . . . . . . Feedback Blocked . | . . . . . . . . . Robot Schematics Acquired 3 | . 2 1 . . . . . . Robots Built 5 | . . . . . . . 5 . Authchips . | . . . . . . . . . Time 107 | . . . . . . . 107 . Total Robot Build Rating 13 | . . . . . . . 13 . Part Schematics Acquired 1 | . . 1 . . . . . . Parts Built . | . . . . . . . . . Authchips . | . . . . . . . . . Time . | . . . . . . . . . Total Part Build Rating . | . . . . . . . . . Parts Repaired 3 | . 1 1 . . . 1 . . Time 90 | . 13 26 . . . 51 . . Parts Recycled . | . . . . . . . . . Recycled Matter . | . . . . . . . . . Retrieved Matter . | . . . . . . . . . Retrieved Components . | . . . . . . . . . Parts Scanalyzed 1 | . . 1 . . . . . . Part Schematics Acquired 1 | . . 1 . . . . . . Parts Damaged . | . . . . . . . . . Bothacking | -11 -10 -9 -9 -9 -8 -8 -7 -7 ------------ Run | Yrd Mat Mat Min Exi Min Mat Fac Was Used RIF Installer . | . . . . . . . . . Robots Hacked . | . . . . . . . . . Non-combat . | . . . . . . . . . Combat . | . . . . . . . . . Robot Hacks Applied . | . . . . . . . . . Relay Couplers Released 4 | . . . . . . . 4 . Programmers 4 | . . . . . . . 4 . Fabnet Peak Effective % . | . . . . . . . . . Robots Rewired 1 | . . . . . . . 1 . Allies Hacked . | . . . . . . . . . Hacks Repelled . | . . . . . . . . . Allies | -11 -10 -9 -9 -9 -8 -8 -7 -7 -------- Run | Yrd Mat Mat Min Exi Min Mat Fac Was Total Allies 12 | . . . 3 . . 1 7 1 Largest Group 7 | . . . 3 2 . 1 7 1 Highest-Rated Group 100 | . . . 40 32 . 10 100 31 Highest-Rated Ally 31 | . . . 16 16 . 10 16 31 Total Orders . | . . . . . . . . . Ally Attacks 80 | . . . 35 . 2 . 30 13 Total Damage 819 | . . . 295 . 27 . 287 210 Kills 11 | . . . 9 . . . 2 . Allies Corrupted . | . . . . . . . . . Allies Melted . | . . . . . . . . . Intel | -11 -10 -9 -9 -9 -8 -8 -7 -7 ------- Run | Yrd Mat Mat Min Exi Min Mat Fac Was Robot Analysis Total 1 | . 1 . . . . . . . Derelict Logs Recovered 1 | . . . 1 . . . . . Drone Launches . | . . . . . . . . . Drone Recoveries . | . . . . . . . . . Exploration | -11 -10 -9 -9 -9 -8 -8 -7 -7 ------------- Run | Yrd Mat Mat Min Exi Min Mat Fac Was Turns Passed 11919 | 152 1896 2405 734 462 176 3511 2432 151 Spaces Moved 5069 | 65 769 998 417 288 86 1062 1277 107 Core 39 | 1 . . . . . . . 38 Treads 5030 | 64 769 998 417 288 86 1062 1277 69 Legs . | . . . . . . . . . Wheels . | . . . . . . . . . Hover . | . . . . . . . . . Flight . | . . . . . . . . . Fastest Speed 50 | 50 160 160 160 160 160 160 156 50 Average Speed 179 | 158 200 161 163 160 160 231 156 118 Slowest Speed 240 | 160 240 240 240 160 160 240 156 160 Overloaded Moves . | . . . . . . . . . Propulsion Burnouts . | . . . . . . . . . Robots Hopped . | . . . . . . . . . Cave-ins Triggered . | . . . . . . . . . Exploration Rate (%) 57 | 6 99 68 85 69 25 71 30 67 Regions Visited 8 Branch Regions 3 Pre-discovered Areas 1 | . . . . 1 . . . . Known Exits Taken 1 | . . 1 . . . . . . Unknown Exits Taken 6 | 1 1 . 1 1 1 1 . . Scrap Searched 2 | . . . 2 . . . . . Spaces Dug 13 | . 2 . . . . 1 10 . Terrain Destroyed 78 | . 3 . . . . 10 65 . Melee 11 | . . . . . . 1 10 . Projectile 3 | . 3 . . . . . . . AOE 64 | . . . . . . 9 55 . Terrain Rammed . | . . . . . . . . . Walls Destroyed . | . . . . . . . . . Machines Disabled . | . . . . . . . . . Actions | -11 -10 -9 -9 -9 -8 -8 -7 -7 --------- Run | Yrd Mat Mat Min Exi Min Mat Fac Was Total 7153 | 89 965 1587 454 289 101 1906 1632 130 Wait 1414 | . 59 424 25 . . 654 242 10 Move 5062 | 64 768 997 416 287 85 1061 1277 107 Hop . | . . . . . . . . . Pick Up 74 | 6 19 13 2 1 . 18 15 . Fast Attach 32 | 7 8 3 . . 1 6 5 2 Attach 29 | . 6 4 . 1 . 11 2 5 Detach 2 | . . . . . . 2 . . Swap 86 | . 16 23 2 . 3 25 16 1 Drop 87 | 1 13 19 2 . 1 29 22 . Fire 341 | 11 76 104 7 . 11 99 33 . Melee 17 | . . . . . . 1 16 . Ram 5 | . . . . . . . . 5 Kick . | . . . . . . . . . Crush . | . . . . . . . . . Escape Stasis . | . . . . . . . . . Rewire 4 | . . . . . . . 4 . Trap . | . . . . . . . . . Miscellaneous . | . . . . . . . . . Route ------- -11/Scrapyard -10/Materials (discovered 5 exits: *Mat x3 / *Min / [Sub]) -9/Materials (discovered 4 exits: *Mat x2 / *Min x2) -9/Mines (discovered 2 exits: *Mat / *Exi) -9/Exiles -8/Mines -8/Materials (discovered 2 exits: *Fac x2) -7/Factory (discovered 2 exits: [*Fac] / [*Low]) -7/Waste (discovered 1 exit: [*Fac]) History --------- Turn | Location | Event 21 | -11/Scrapyard | Discovered new exit (range 15) 153 | -11/Scrapyard | Entered Materials 312 | -10/Materials | Build established: Mutant 635 | -10/Materials | Discovered new exit (range 16) 869 | -10/Materials | Discovered new exit (range 9) 988 | -10/Materials | Identified exit to Mines 1225 | -10/Materials | Discovered new exit (range 16) 1549 | -10/Materials | Lost 3 parts (1n2w) 1963 | -10/Materials | Discovered new exit (range 16) 2014 | -10/Materials | Repaired Lgt. Treads 2049 | -10/Materials | Entered another Materials area 2049 | -9/Materials | Evolved 2 slots: Propulsion x1, Utility x1 2551 | -9/Materials | Identified exit to Mines 2751 | -9/Materials | Discovered new exit (range 16) 2831 | -9/Materials | Build established: Scavenger-Mutant 3277 | -9/Materials | Discovered new exit (range 4) 3414 | -9/Materials | Repaired Assault Rifle 3605 | -9/Materials | Destroyed 9 combat bots 4449 | -9/Materials | First assault squad dispatched 4454 | -9/Materials | Entered Mines 4454 | -9/Mines | Assisted by bots powering up and referring to "LRC-V3" 4840 | -9/Mines | Discovered new exit (range 6) 4842 | -9/Mines | Learned Materials terminal intel 4956 | -9/Mines | Received a Rocket Launcher from a helpful Derelict 5176 | -9/Mines | Deemed a non-threat by the Exiles lab entrance 5176 | -9/Mines | Discovered new exit (range 5) 5188 | -9/Mines | Entered Exiles 5188 | -9/Exiles | Accompanied by 2 allies 5228 | -9/Exiles | Met 8R-AWN 5254 | -9/Exiles | Met EX-HEX 5312 | -9/Exiles | Met EX-DEC 5340 | -9/Exiles | Learned location of Zion (-7) 5372 | -9/Exiles | Met EX-BIN 5395 | -9/Exiles | Aligned with FarCom system 5396 | -9/Exiles | Given EX-Vault access code 5438 | -9/Exiles | Opened EX-Vault 5449 | -9/Exiles | Found Field Lobotomy Kit 5482 | -9/Exiles | Warned to stay clear of 0b10 Research branches 5505 | -9/Exiles | Exiles lab attacked by MAIN.C 5629 | -9/Exiles | Discovered new exit (range 14) 5650 | -9/Exiles | Left Exiles lab with Field Lobotomy Kit 5650 | -9/Exiles | Entered Mines 5650 | -8/Mines | Accompanied by 2 allies 5808 | -8/Mines | Discovered new exit (range 11) 5826 | -8/Mines | Entered Materials 5826 | -8/Materials | Evolved 2 slots: Utility x1, Weapon x1 5827 | -8/Materials | Loaded intel: 12 terminal locations 6126 | -8/Materials | Build established: Scavenger-Skirmisher 7460 | -8/Materials | Build established: Skirmisher 7568 | -8/Materials | Garrison activated, responded to threat 7686 | -8/Materials | Discovered new exit (range 16) 7741 | -8/Materials | Repaired Imp. Assault Rifle 7989 | -8/Materials | Build established: Tank 8914 | -8/Materials | Build established: Scavenger-Tank 9279 | -8/Materials | Discovered new exit (range 10) 9337 | -8/Materials | Entered Factory 9337 | -7/Factory | Accompanied by 1 ally 9337 | -7/Factory | Evolved 2 slots: Propulsion x1, Utility x1 9359 | -7/Factory | Build established: Tank 9633 | -7/Factory | Fabricated G-47 Trooper? 9760 | -7/Factory | Fabricated Y-45 Defender? 10531 | -7/Factory | Discovered new exit (range 15) 11730 | -7/Factory | Discovered new exit (range 15) 11769 | -7/Factory | Sucked down chute 11769 | -7/Factory | Entered Waste 11770 | -7/Waste | Met a frightened Derelict 11782 | -7/Waste | Spotted C-40 Crusher 11787 | -7/Waste | Spotted C-40 Crusher 11817 | -7/Waste | Spotted C-40 Crusher 11822 | -7/Waste | Spotted C-40 Crusher 11833 | -7/Waste | Crushed by Compactor (0 parts destroyed, 1 dropped) 11854 | -7/Waste | Spotted C-40 Crusher 11858 | -7/Waste | Spotted C-40 Crusher 11861 | -7/Waste | Crushed by Compactor (0 parts destroyed, 1 dropped) 11873 | -7/Waste | Crushed by Compactor (1 part destroyed) 11874 | -7/Waste | Crushed by Compactor (1 part destroyed, 1 dropped) 11876 | -7/Waste | Crushed by Compactor (0 parts destroyed, 1 dropped) 11877 | -7/Waste | Crushed by Compactor (0 parts destroyed, 1 dropped) 11879 | -7/Waste | Crushed by Compactor (1 part destroyed, 1 dropped) 11880 | -7/Waste | Crushed by Compactor (0 parts destroyed, 1 dropped) 11880 | -7/Waste | Crushed by Compactor (1 part destroyed, 1 dropped) 11882 | -7/Waste | Discovered new exit (range 14) 11883 | -7/Waste | Crushed by Compactor (1 part destroyed, 2 dropped) 11883 | -7/Waste | Crushed by Compactor (1 part destroyed, 1 dropped) 11886 | -7/Waste | Crushed by Compactor (1 part destroyed) 11910 | -7/Waste | Core integrity fell below 50% 11916 | -7/Waste | Core integrity fell below 20% 11917 | -7/Waste | Lost 8 parts (1p5n2u) 11920 | -7/Waste | Destroyed by C-40 Crusher with Compactor Last Messages --------------- 11883_ Med. Treads crushed. 11883_ Lgt. Treads crushed. 11883_ Hrd. Light Armor Plating crushed. 11883_ Hrd. Medium Armor Plating crushed. 11883_ Field Lobotomy Kit crushed. 11883_ Structural Scanner crushed. 11883_ Imp. Targeting Computer crushed. 11884_ Acquired Lgt. Treads. 11886_ Lgt. Treads crushed. 11886_ Med. Treads crushed. 11888_ Slammed into C-40 Crusher. 11890_ Hrd. Medium Armor Plating crushed. 11890_ Missile Launcher crushed. 11891_ Slammed into C-40 Crusher. 11891_ Adv. ECM Suite crushed. 11891_ Lgt. Treads crushed. 11891_ Hcp. Storage Unit crushed. 11892_ Slammed into C-40 Crusher. 11914_ System corrupted: Matter fused (-9). 11916_ Broken Hvy. Mass Driver crushed. Map ----- +----------------------------------------------------+ | ##????## ##???????????????????? | | ##????## * ##???????????????????? | | ##????## ##???????????????????? | | ##????## ##???????????????????? | | ##????## ######## ####???????????????????? | | ##????## ######## ####???????????????????? | | ##????## ##????## ##?????????????????????? | | ######## ######## ####???????????????????? | | ######## ######## ####???????????????????? | | = ##???????????????????? | | ##???????????????????? | | ! ##???????????????????? | | = | ##???????????????????? | | ######## ######## ####???????????????????? | | ######## ######## ####??####?????????????? | | ##????## ##????## ##??? ?????????????? | | ##????## ##????## ##?? ????????????? | | ##????## ##????## #### ???????????? | | ??????## ##????## ???????????? | | ??????## ##????## ???????????? | | ??????## ##????## < ???????????? | | ???????? ##????## ???????????? | | ???????? ##????## #### ???????????? | | ???????? ##????## #### ????????????? | | ?????????? ????????## ##??? ?????????????? | | ????????????????????## CC@##???#####?????????????? | | ???????????????????### CC ###??#####?????????????? | | ???????????????????# CCC #????????????????????? | | ???????????????????#CC CCC #????????????????????? | | ???????????????????#CC CCCC#????????????????????? | | ???????????????????# CCCC#????????????????????? | | ???????????????????# #????????????????????? | | ???????????????????# #????????????????????? | | ???????????????????# #????????????????????? | | ???????????????????# #????????????????????? | | ???????????????????##########????????????????????? | | ?????????????????????????????????????????????????? | | ?????????????????????????????????????????????????? | | ?????????????????????????????????????????????????? | | ?????????????????????????????????????????????????? | | ?????????????????????????????????????????????????? | | ?????????????????????????????????????????????????? | | ?????????????????????????????????????????????????? | | ?????????????????????????????????????????????????? | | ?????????????????????????????????????????????????? | | ?????????????????????????????????????????????????? | | ?????????????????????????????????????????????????? | | ?????????????????????????????????????????????????? | | ?????????????????????????????????????????????????? | | ?????????????????????????????????????????????????? | +----------------------------------------------------+ Best States ------------- Heat Dissipation 34 Energy Generation 17 Energy Capacity 300 Matter Stores 300 Matter Capacity 300 Sight Range 16 Robot Scan Range 14 Terrain Scan Density 10 Armor Coverage 600 Evasion (%) 50 Targeting Accuracy 6 Recoil Reduction 4 Item Schematics ----------------- Sensor Array | -9/Materials | Scanalyzed Robot Schematics ------------------ G-34 Mercenary | -10/Materials | Hacked W-16 Scout | -10/Materials | Hacked Y-45 Defender | -9/Materials | Hacked Fabricated ------------ G-47 Trooper | x3 | -7/Factory | Preloaded Y-45 Defender | x2 | -7/Factory Alien Tech Used ----------------- None Achievements -------------- It Was An Accident, I Swear Challenges ------------ None Game ------ Seed HardenedDerelictPlatform Manual? 0 Play Time 01:43:59 Cumulative 58.0 hours Start 2024.07.03 @ 14:40:59 End 2024.07.04 @ 09:49:26 Sessions 5 Manual Loads 0 Difficulty Rogue Special Mode None Game No. 43 Rogue 42 Adventurer 1 Explorer 0 Win Type - Total 0 Types 0/0/0/0/0/0/0/0/0 Lore% 27 Gallery% 32 Achievement% 29 Wizard Run 0 Options --------- Layout 1 ASCII 0 Keyboard 0 Movement Mouse Keybinds 0 Fullscreen 1 Font 24/Proggy Map View 76x35 Zoom Use 0% Tactical HUD 1 Map Filters NONE Filters NONE Steam 1 RUN: ab466dc5-c461-4b38-8720-46e186fecc38